bitfinex/quotes_SOLUSD_20250704
["timestamp","ask_amount","ask_price","bid_price","bid_amount"]
[1751610790890,0.1,152.76,152.74,12.72983032]
[1751610791319,0.1,152.76,152.75,18.64964886]
[1751610792300,0.1,152.76,152.75,25.1962937]
[1751610794804,0.1,152.76,152.75,31.37918644]
[1751610795481,0.1,152.76,152.75,39.59988644]
[1751610796079,0.1,152.76,152.75,33.4169937]
[1751610796279,0.1,152.76,152.75,39.59988644]
[1751610796682,0.1,152.76,152.75,31.37918644]
[1751610797513,0.1,152.76,152.75,44.64964886]
[1751610799511,0.1,152.76,152.75,51.1962937]
[1751610802408,0.1,152.76,152.75,57.37918644]
[1751610804124,0.1,152.76,152.75,50.8325416]
[1751610804287,0.1,152.76,152.75,44.64964886]
[1751610808396,6.28289274,152.76,152.75,18.64964886]
[1751610808595,6.28289274,152.76,152.74,18.64964886]
[1751610808902,6.18289274,152.75,152.74,18.64964886]
[1751610809406,6.18289274,152.75,152.72,26.0]
[1751610809610,6.18289274,152.74,152.73,18.64964886]
[1751610811023,6.18289274,152.74,152.72,26.0]
[1751610811223,6.54667898,152.75,152.7,33.02]
[1751610811224,6.18289274,152.73,152.7,33.02]
[1751610811432,6.18289274,152.72,152.7,26.0]
[1751610811716,6.18289274,152.71,152.69,0.2]
[1751610811914,6.18289274,152.7,152.69,44.84964886]
[1751610812218,22.91475709,152.74,152.69,0.2]
[1751610812438,6.18289274,152.7,152.69,0.2]
[1751610812714,6.18289274,152.7,152.69,26.2]
[1751610813413,6.18289274,152.71,152.7,18.64964886]
[1751610813817,6.18289274,152.72,152.7,18.64964886]
[1751610814312,6.54707345,152.74,152.7,18.64964886]
[1751610814519,6.18289274,152.72,152.7,18.64964886]
[1751610817726,6.54753471,152.73,152.7,18.64964886]
[1751610817923,0.1,152.76,152.71,6.18289274]
[1751610818236,6.28289274,152.76,152.73,18.64964886]
[1751610819612,0.1,152.76,152.73,18.64964886]
[1751610821129,6.28289274,152.76,152.73,18.64964886]
[1751610821635,0.1,152.76,152.73,18.64964886]
[1751610821815,6.28289274,152.76,152.73,18.64964886]
[1751610822333,12.82918003,152.76,152.72,18.64964886]
[1751610824235,6.18289274,152.75,152.72,25.19751392]
[1751610824532,0.1,152.76,152.72,25.19751392]
[1751610824836,6.18289274,152.75,152.72,25.19751392]
[1751610826837,6.28289274,152.76,152.72,25.19751392]
[1751610828010,6.18289274,152.75,152.72,25.19751392]
[1751610829817,0.1,152.76,152.72,25.19751392]
[1751610830016,6.18289274,152.75,152.72,25.19751392]
[1751610831244,6.28289274,152.76,152.72,25.19751392]
[1751610832329,0.1,152.76,152.75,24.8325416]
[1751610834045,0.1,152.76,152.75,31.37918644]
[1751610840047,0.1,152.76,152.75,57.66350958]
[1751610840433,0.1,152.81,152.79,44.64964886]
[1751610840632,0.1,152.81,152.8,24.8325416]
[1751610841340,0.1,152.81,152.8,31.37704421]
[1751610841651,0.1,152.81,152.8,18.64964886]
[1751610843535,6.28289274,152.81,152.8,18.64964886]
[1751610846864,12.82696708,152.81,152.77,7.0]
[1751610847037,23.00426019,152.81,152.77,7.0]
[1751610847364,6.18289274,152.78,152.72,0.2]
[1751610847535,6.18289274,152.75,152.74,26.0]
[1751610847735,6.18289274,152.75,152.74,44.64964886]
[1751610849236,6.18289274,152.76,152.74,44.64964886]
[1751610851158,6.54493095,152.79,152.74,44.64964886]
[1751610851453,6.18289274,152.77,152.74,44.64964886]
[1751610856362,6.54450261,152.8,152.74,44.64964886]
[1751610856539,6.18289274,152.77,152.74,44.64964886]
[1751610858665,6.54503112,152.79,152.75,18.64964886]
[1751610858841,12.72792386,152.79,152.75,18.64964886]
[1751610859041,6.18289274,152.78,152.75,18.64964886]
[1751610860570,6.18289274,152.79,152.75,18.64964886]
[1751610860760,6.18289274,152.8,152.75,31.37889823]
[1751610860946,6.18289274,152.79,152.75,18.64964886]
[1751610861155,6.64416464,152.81,152.75,25.196269]
[1751610861349,6.18289274,152.79,152.75,25.196269]
[1751610861755,6.18289274,152.78,152.75,18.64964886]
[1751610863273,6.54529113,152.79,152.75,18.64964886]
[1751610863469,6.18289274,152.78,152.75,18.64964886]
[1751610864048,6.54529113,152.79,152.75,18.64964886]
[1751610864374,6.18289274,152.78,152.75,18.64964886]
[1751610864772,6.54450261,152.8,152.75,18.64964886]
[1751610865064,0.1,152.81,152.78,44.64964886]
[1751610865459,0.1,152.81,152.78,51.64964886]
[1751610867773,0.1,152.81,152.78,58.19493058]
[1751610872758,0.1,152.81,152.78,51.64964886]
[1751610873118,6.28289274,152.81,152.78,51.64964886]
[1751610873259,6.18289274,152.8,152.78,25.64964886]
[1751610874051,6.64428468,152.81,152.78,25.64964886]
[1751610874384,6.28289274,152.81,152.78,25.64964886]
[1751610875080,0.1,152.81,152.78,25.64964886]
[1751610875459,6.28289274,152.81,152.78,25.64964886]
[1751610877675,0.1,152.81,152.78,25.64964886]
[1751610878197,6.28289274,152.81,152.78,25.64964886]
[1751610878604,0.1,152.81,152.78,25.64964886]
[1751610878772,6.28289274,152.81,152.78,25.64964886]
[1751610881194,12.82697328,152.81,152.78,25.64964886]
[1751610882975,0.1,152.81,152.78,25.64964886]
[1751610883383,6.28289274,152.81,152.78,25.64964886]
[1751610883771,12.82698869,152.81,152.78,25.64964886]
[1751610884291,6.64409595,152.81,152.78,25.64964886]
[1751610884472,12.82698869,152.81,152.78,25.64964886]
[1751610885169,6.18289274,152.8,152.78,25.64964886]
[1751610885369,6.64409595,152.81,152.78,25.64964886]
[1751610885575,6.18289274,152.8,152.78,25.64964886]
[1751610887296,12.72758965,152.8,152.78,25.64964886]
[1751610887791,6.18289274,152.77,152.76,26.0]
[1751610887997,0.1,152.81,152.77,18.64964886]
[1751610888186,6.28289274,152.81,152.77,18.64964886]
[1751610888371,12.82697868,152.81,152.77,18.64964886]
[1751610888571,6.18289274,152.8,152.77,18.64964886]
[1751610889509,6.18289274,152.79,152.77,18.64964886]
[1751610889805,6.54450822,152.8,152.77,18.64964886]
[1751610890006,6.18289274,152.8,152.77,18.64964886]
[1751610890989,6.64426309,152.81,152.77,18.64964886]
[1751610891192,6.18289274,152.8,152.77,18.64964886]
[1751610892125,12.72747164,152.8,152.77,18.64964886]
[1751610892332,6.18289274,152.78,152.75,18.84964886]
[1751610892623,6.18289274,152.77,152.75,18.84964886]
[1751610892797,12.72747164,152.8,152.75,0.2]
[1751610892992,29.08872818,152.8,152.75,0.2]
[1751610893995,6.18289274,152.76,152.75,0.2]
[1751610899932,6.54493095,152.79,152.75,0.2]
[1751610900127,6.18289274,152.76,152.75,0.2]
[1751610901932,6.54493095,152.79,152.75,0.2]
[1751610902104,16.36125654,152.8,152.75,0.2]
[1751610902105,6.18289274,152.76,152.75,0.2]
[1751610902300,6.54549905,152.78,152.75,0.2]
[1751610902805,6.18289274,152.76,152.75,0.2]
[1751610904230,6.18289274,152.79,152.76,18.64964886]
[1751610904801,6.6442621,152.81,152.76,18.64964886]
[1751610905105,6.18289274,152.79,152.76,18.64964886]
[1751610905913,6.18289274,152.8,152.76,31.37869085]
[1751610906120,6.28289274,152.81,152.76,31.37869085]
[1751610907029,6.18289274,152.8,152.76,31.37869085]
[1751610907612,6.18289274,152.8,152.76,25.19579811]
[1751610907807,6.18289274,152.79,152.76,25.19579811]
[1751610909024,6.64410003,152.81,152.77,18.64964886]
[1751610909226,6.18289274,152.79,152.77,18.64964886]
[1751610913233,6.54472598,152.8,152.77,18.64964886]
[1751610913437,6.18289274,152.78,152.77,18.64964886]
[1751610914330,6.18289274,152.78,152.75,18.84964886]
[1751610916417,6.18289274,152.78,152.75,25.39628192]
[1751610917527,6.18289274,152.78,152.75,18.84964886]
[1751610917730,6.28289274,152.78,152.75,18.84964886]
[1751610918035,6.28289274,152.78,152.75,25.39623354]
[1751610923246,0.1,152.78,152.75,25.39623354]
[1751610925213,0.1,152.78,152.75,31.57912628]
[1751610925842,0.1,152.78,152.75,25.39623354]
[1751610928929,6.18289274,152.77,152.75,18.84964886]
[1751610929139,6.18289274,152.76,152.75,18.84964886]
[1751610930043,3.95454188,152.77,152.75,18.84964886]
[1751610931828,6.17890406,152.76,152.75,0.2]
[1751610932449,6.64541598,152.78,152.75,0.2]
[1751610933449,6.17890406,152.76,152.75,0.2]
[1751610938565,0.1,152.78,152.75,0.2]
[1751610938759,0.1,152.78,152.76,18.64964886]
[1751610940774,0.1,152.78,152.76,25.19566115]
[1751610941942,0.1,152.78,152.76,31.37456521]
[1751610943648,0.1,152.78,152.76,57.37456521]
[1751610945981,0.1,152.78,152.76,51.19566115]
[1751610946393,0.1,152.78,152.76,57.37456521]
[1751610948078,0.1,152.78,152.76,51.19566115]
[1751610948377,0.1,152.78,152.76,57.37456521]
[1751610948970,0.1,152.78,152.76,51.19566115]
[1751610949176,0.1,152.78,152.76,57.37456521]
[1751610950372,0.1,152.78,152.76,51.19566115]
[1751610950686,6.27890406,152.78,152.76,51.1957864]
[1751610950862,0.1,152.78,152.76,51.1957864]
[1751610951049,6.27890406,152.78,152.76,44.64964886]
[1751610953276,0.1,152.78,152.76,51.19579539]
[1751610961801,0.1,152.78,152.76,55.1490442]
[1751610964198,0.1,152.78,152.76,51.19579539]
[1751610964498,0.1,152.78,152.76,44.64964886]
[1751610964692,0.1,152.78,152.76,51.19583824]
[1751610965195,4.05324881,152.78,152.76,44.64964886]
[1751610965897,0.1,152.78,152.76,51.19585095]
[1751610966095,0.1,152.78,152.76,55.14909976]
[1751610966393,0.1,152.78,152.76,88.66909976]
[1751610967802,0.1,152.78,152.77,48.60289767]
[1751610970206,0.1,152.78,152.77,55.14868545]
[1751610974707,0.1,152.78,152.77,55.43300859]
[1751610975194,1e-08,152.78,152.77,29.43300859]
[1751610975396,1e-08,152.78,152.77,68.89300859]
[1751610980194,1e-08,152.78,152.77,29.43300859]
[1751610982704,1e-08,152.78,152.77,68.77300859]
[1751610984113,1e-08,152.78,152.75,0.2]
[1751610984299,3.95324881,152.76,152.75,6.74664484]
[1751610984502,1e-08,152.78,152.75,0.2]
[1751610984699,1e-08,152.78,152.75,32.74654469]
[1751610984700,3.95324882,152.78,152.75,32.74654469]
[1751610984901,1e-08,152.78,152.76,18.64964886]
[1751610985589,1e-08,152.78,152.77,22.60289767]
[1751610986313,1e-08,152.78,152.77,29.43300859]
[1751610986509,1e-08,152.78,152.77,62.91300859]
[1751610987690,1e-08,152.78,152.77,62.62868545]
[1751610988012,1e-08,152.78,152.77,65.13401705]
[1751610988211,1e-08,152.78,152.77,58.95975978]
[1751610988417,1e-08,152.78,152.77,65.13401705]
[1751610989590,1e-08,152.78,152.77,72.09401705]
[1751610991811,1e-08,152.78,152.77,65.91975978]
[1751610991995,1e-08,152.78,152.77,72.09401705]
[1751610993014,1e-08,152.78,152.77,38.61401705]
[1751610993239,1e-08,152.78,152.77,72.09401705]
[1751610993516,1e-08,152.78,152.77,65.91975978]
[1751610993723,1e-08,152.78,152.77,72.09401705]
[1751610994717,1e-08,152.78,152.77,65.91975978]
[1751610994910,1e-08,152.78,152.77,72.09401705]
[1751610995416,1e-08,152.78,152.77,65.91975978]
[1751610995716,1e-08,152.78,152.77,72.09401705]
[1751610996010,1e-08,152.78,152.77,38.32969391]
[1751610996214,1e-08,152.78,152.77,25.60964886]
[1751610996797,1e-08,152.78,152.77,32.15543664]
[1751610998723,1e-08,152.78,152.77,25.60964886]
[1751611001031,1e-08,152.78,152.77,32.15543664]
[1751611002130,1e-08,152.78,152.77,25.60964886]
[1751611003436,1e-08,152.78,152.77,32.15543664]
[1751611003646,1e-08,152.78,152.77,25.60964886]
[1751611007937,1e-08,152.78,152.77,32.15543664]
[1751611009643,1e-08,152.78,152.77,25.60964886]
[1751611018240,1e-08,152.78,152.77,18.64964886]
[1751611021143,1e-08,152.78,152.77,25.19543664]
[1751611021442,1e-08,152.78,152.77,18.64964886]
[1751611024332,1e-08,152.78,152.77,25.19543664]
[1751611025944,1e-08,152.78,152.77,25.47975978]
[1751611026146,1e-08,152.78,152.77,18.64964886]
[1751611027742,3.95281075,152.78,152.77,18.64964886]
[1751611027925,1e-08,152.78,152.77,18.64964886]
[1751611029250,1e-08,152.78,152.77,25.19543664]
[1751611031049,1e-08,152.78,152.77,18.64964886]
[1751611035136,1e-08,152.78,152.77,18.84964886]
[1751611041351,1e-08,152.78,152.77,25.02714822]
[1751611043051,1e-08,152.78,152.77,31.572936]
[1751611046842,1e-08,152.78,152.77,25.39543664]
[1751611047043,1e-08,152.78,152.77,31.572936]
[1751611048069,1e-08,152.78,152.77,18.84964886]
[1751611054869,8.02072251,152.78,152.77,0.2]
[1751611055757,5.7996972,152.78,152.77,0.2]
[1751611056168,12.34505654,152.78,152.77,0.2]
[1751611057885,14.57042857,152.78,152.77,0.2]
[1751611059373,14.57042857,152.78,152.77,1e-08]
[1751611059678,26.28432314,152.76,152.75,0.2]
[1751611059878,32.46616922,152.76,152.75,0.2]
[1751611060379,39.0123855,152.76,152.75,0.2]
[1751611071093,39.0123855,152.76,152.75,1e-08]
[1751611071474,45.6137855,152.76,152.74,1e-08]
[1751611071794,6.18184608,152.75,152.74,1e-08]
[1751611072496,12.72849092,152.75,152.74,1e-08]
[1751611077879,10.50427794,152.75,152.74,1e-08]
[1751611081108,1.55890001,152.78,152.74,1e-08]
[1751611081321,1e-08,152.78,152.74,3.95763311]
[1751611081487,1e-08,152.78,152.76,3.9576331]
[1751611082505,1e-08,152.78,152.75,22.60728196]
[1751611082709,1e-08,152.78,152.74,3.95763311]
[1751611082710,3.95763311,152.78,152.74,3.95763311]
[1751611083813,6.1787982,152.78,152.74,6.1787982]
[1751611084797,6.17879819,152.76,152.74,1e-08]
[1751611087404,12.72533505,152.76,152.74,1e-08]
[1751611090003,6.54653686,152.76,152.74,1e-08]
[1751611091508,6.17879819,152.77,152.74,1e-08]
[1751611092533,1e-08,152.78,152.75,6.17879819]
[1751611093728,1e-08,152.78,152.77,24.82844705]
[1751611095729,1e-08,152.78,152.77,31.37423483]
[1751611098414,1e-08,152.78,152.77,32.94833483]
[1751611098726,1e-08,152.78,152.77,39.86833483]
[1751611101437,1e-08,152.78,152.77,40.15265797]
[1751611109427,1e-08,152.78,152.77,73.55265797]
[1751611111939,1e-08,152.78,152.77,32.11543664]
[1751611112121,1e-08,152.78,152.77,38.29423483]
[1751611112836,1e-08,152.78,152.77,64.29423483]
[1751611113638,1e-08,152.78,152.77,57.37423483]
[1751611115837,5.82249061,152.82,152.77,57.37423483]
[1751611117047,12.366383,152.82,152.77,57.37423483]
[1751611118053,6.54389239,152.82,152.79,18.64964886]
[1751611118426,6.64389239,152.82,152.79,18.64964886]
[1751611118847,0.1,152.82,152.79,18.64964886]
[1751611119227,0.1,152.82,152.8,6.17879819]
[1751611119926,0.1,152.82,152.79,24.82844705]
[1751611123153,0.1,152.82,152.79,31.37333374]
[1751611123851,0.1,152.82,152.81,18.64964886]
[1751611124154,0.1,152.82,152.81,6.17879819]
[1751611125440,0.1,152.82,152.81,24.82844705]
[1751611126362,0.1,152.82,152.81,31.37252139]
[1751611129463,0.1,152.82,152.81,24.82844705]
[1751611129641,0.1,152.82,152.81,31.37252139]
[1751611131866,0.1,152.82,152.81,24.82844705]
[1751611135465,0.1,152.82,152.81,31.37252139]
[1751611135980,0.1,152.82,152.81,31.57252139]
[1751611136271,0.1,152.82,152.81,25.02844705]
[1751611139663,0.1,152.82,152.81,18.84964886]
[1751611139867,0.1,152.82,152.81,25.02844705]
[1751611142474,0.1,152.82,152.81,0.2]
[1751611142475,6.64364611,152.82,152.81,0.2]
[1751611142658,12.8224443,152.82,152.81,26.2]
[1751611143047,6.17879819,152.82,152.81,26.2]
[1751611143973,12.7224443,152.82,152.81,26.2]
[1751611144354,6.54364611,152.82,152.81,26.2]
[1751611144880,0.1,152.83,152.82,18.64964886]
[1751611145583,0.1,152.83,152.81,26.2]
[1751611149390,6.64329717,152.83,152.81,26.2]
[1751611149906,6.64329717,152.83,152.81,0.2]
[1751611150064,6.17879819,152.82,152.81,0.2]
[1751611150473,11.05838433,152.82,152.81,0.2]
[1751611151691,17.60203044,152.82,152.81,0.2]
[1751611154271,17.60203044,152.82,152.75,44.84964886]
[1751611154272,74.70759765,152.82,152.75,0.2]
[1751611154593,6.17879819,152.76,152.75,0.2]
[1751611156274,12.72501447,152.76,152.75,0.2]
[1751611157995,6.17879819,152.77,152.75,0.2]
[1751611159278,6.54493095,152.79,152.75,0.2]
[1751611159502,6.17879819,152.78,152.75,0.2]
[1751611159687,12.72372914,152.79,152.75,0.2]
[1751611160194,12.72372914,152.79,152.75,6.37879819]
[1751611161499,12.72372914,152.79,152.75,0.2]
[1751611161703,12.72372914,152.79,152.75,6.37879819]
[1751611161907,6.54407434,152.81,152.76,18.64964886]
[1751611162196,12.72287253,152.81,152.77,6.17879819]
[1751611162681,6.17879819,152.8,152.75,0.2]
[1751611162887,6.17879819,152.79,152.75,6.37879819]
[1751611165002,6.54535934,152.78,152.75,6.37879819]
[1751611166488,6.54535934,152.78,152.75,0.2]
[1751611168811,6.17879819,152.79,152.75,0.2]
[1751611170517,6.17879819,152.79,152.75,25.02844705]
[1751611171020,12.72405161,152.79,152.75,25.02844705]
[1751611171315,6.17879819,152.78,152.75,0.2]
[1751611171513,6.17879819,152.76,152.75,0.2]
[1751611173422,12.72501447,152.76,152.75,0.2]
[1751611180814,23.19308083,152.78,152.75,0.2]
[1751611180987,6.17879819,152.76,152.75,0.2]
[1751611183397,12.72501447,152.76,152.75,0.2]
[1751611183595,13.41268887,152.76,152.75,0.2]
[1751611189818,11.19022367,152.76,152.75,0.2]
[1751611195798,7.23389068,152.76,152.75,0.2]
[1751611196004,11.19022367,152.76,152.75,0.2]
[1751611197430,13.02384681,152.76,152.75,0.2]
[1751611207232,0.28432314,152.75,152.74,1e-08]
[1751611207436,4.24065613,152.75,152.74,1e-08]
[1751611207952,18.64964886,152.74,152.72,1e-08]
[1751611208123,3.95633299,152.73,152.72,1e-08]
[1751611208435,10.50383511,152.73,152.72,1e-08]
[1751611209324,26.32916707,152.73,152.72,1e-08]
[1751611213633,10.50383511,152.73,152.72,1e-08]
[1751611213931,11.19150951,152.73,152.72,1e-08]
[1751611214335,27.01684147,152.73,152.72,1e-08]
[1751611215227,11.47583265,152.73,152.72,1e-08]
[1751611219530,7.23517652,152.73,152.72,1e-08]
[1751611227842,11.19150951,152.73,152.72,1e-08]
[1751611228744,7.23517652,152.73,152.72,1e-08]
[1751611231266,0.6876744,152.73,152.72,1e-08]
[1751611231460,0.6876744,152.73,152.72,3.956333]
[1751611233665,0.7876744,152.73,152.72,3.956333]
[1751611241184,0.7876744,152.73,152.72,29.15391271]
[1751611241353,0.7876744,152.73,152.72,50.99784467]
[1751611243077,0.1,152.8,152.72,67.65199494]
[1751611243382,0.1,152.8,152.78,3.95633299]
[1751611243877,0.1,152.8,152.78,6.17582711]
[1751611245181,6.64454514,152.8,152.77,6.17582711]
[1751611245362,12.82037225,152.8,152.76,6.17582711]
[1751611246285,6.64454514,152.8,152.76,6.17582711]
[1751611246474,12.82037225,152.8,152.76,6.17582711]
[1751611246669,12.82037225,152.8,152.72,30.84407598]
[1751611246980,12.82037225,152.8,152.76,6.17582711]
[1751611247180,12.82037225,152.8,152.72,56.84407598]
[1751611247181,12.82037225,152.8,152.75,6.17582711]
[1751611250673,12.82037225,152.8,152.76,6.17582711]
[1751611252572,6.64454514,152.8,152.76,6.17582711]
[1751611253174,6.64454514,152.8,152.75,32.54651049]
[1751611253377,6.64454514,152.8,152.77,6.17582711]
[1751611253770,6.64454514,152.8,152.75,32.54651049]
[1751611254089,6.64454514,152.8,152.77,6.17582711]
[1751611258179,12.82037225,152.8,152.76,18.64964886]
[1751611258385,6.17582711,152.79,152.75,26.0]
[1751611258996,6.17582711,152.79,152.75,32.17582711]
[1751611260275,6.64454514,152.8,152.75,32.17582711]
[1751611260495,6.17582711,152.79,152.75,32.17582711]
[1751611261787,6.64454514,152.8,152.75,32.17582711]
[1751611261974,0.1,152.8,152.79,6.17582711]
[1751611262175,6.64450261,152.8,152.77,6.17582711]
[1751611264801,6.64450261,152.8,152.76,6.17582711]
[1751611266889,6.64450261,152.8,152.77,6.17582711]
[1751611267390,6.64450261,152.8,152.75,32.54652115]
[1751611267594,6.64450261,152.8,152.77,6.17582711]
[1751611269086,0.1,152.8,152.77,6.17582711]
[1751611269301,6.64454274,152.8,152.77,6.17582711]
[1751611270514,0.1,152.8,152.77,6.17582711]
[1751611271482,6.6445415,152.8,152.77,6.17582711]
[1751611271883,6.6445415,152.8,152.77,3.95306625]
[1751611276090,6.6445415,152.8,152.76,18.64964886]
[1751611276292,3.95306625,152.79,152.75,29.95306625]
[1751611276494,3.95306625,152.79,152.75,26.0]
[1751611277421,10.49815659,152.79,152.75,26.0]
[1751611277710,6.54509034,152.79,152.76,3.95306625]
[1751611284516,6.54509034,152.79,152.75,29.95306625]
[1751611286046,6.54509034,152.79,152.76,3.95306625]
[1751611286613,6.64468738,152.8,152.76,3.95306625]
[1751611287603,0.1,152.8,152.76,10.49917831]
[1751611287992,0.1,152.8,152.78,3.95306625]
[1751611288314,0.1,152.8,152.76,6.54611206]
[1751611288315,0.1,152.8,152.79,3.95306625]
[1751611289896,0.1,152.8,152.79,10.4979972]
[1751611292706,0.1,152.8,152.79,29.14764606]
[1751611296526,0.1,152.8,152.79,22.60271511]
[1751611304032,0.1,152.8,152.79,29.14764606]
[1751611306402,0.1,152.8,152.79,10.4979972]
[1751611306603,0.1,152.8,152.79,29.14764606]
[1751611308558,0.1,152.8,152.79,18.64964886]
[1751611308714,4.05306625,152.8,152.76,18.64964886]
[1751611308910,4.05306625,152.8,152.76,22.60271511]
[1751611309112,0.1,152.8,152.76,22.60271511]
[1751611309507,0.1,152.8,152.76,18.64964886]
[1751611309708,0.1,152.8,152.76,22.60271511]
[1751611309938,0.1,152.8,152.77,18.64964886]
[1751611310735,0.1,152.8,152.77,22.60271511]
[1751611312329,6.64455199,152.8,152.77,3.95306625]
[1751611312530,6.64455199,152.8,152.78,26.0]
[1751611320425,0.1,152.8,152.78,26.0]
[1751611321240,6.64450489,152.8,152.78,26.0]
[1751611321542,10.59757114,152.8,152.76,26.0]
[1751611322240,0.1,152.8,152.78,3.95306625]
[1751611324549,0.1,152.8,152.79,48.60271511]
[1751611325047,0.1,152.8,152.78,6.54524185]
[1751611325048,6.6445339,152.8,152.77,26.0]
[1751611328433,10.59760015,152.8,152.78,26.0]
[1751611330518,0.1,152.8,152.78,26.0]
[1751611330723,0.1,152.8,152.78,29.95306625]
[1751611331133,0.1,152.8,152.79,3.95306625]
[1751611331719,0.1,152.8,152.78,32.54532318]
[1751611331922,0.1,152.8,152.79,24.82402383]
[1751611332967,0.1,152.8,152.79,31.36895478]
[1751611343353,0.1,152.8,152.79,25.19457981]
[1751611343555,0.1,152.8,152.79,31.36895478]
[1751611346140,0.1,152.8,152.79,25.19457981]
[1751611346638,0.1,152.8,152.79,31.36895478]
[1751611353760,0.1,152.8,152.79,29.14549435]
[1751611358367,0.1,152.8,152.74,87.7]
[1751611358566,4.05091454,152.8,152.78,18.64964886]
[1751611358747,0.1,152.8,152.78,44.64964886]
[1751611359176,10.59548694,152.8,152.75,3.95091454]
[1751611359350,3.95091454,152.76,152.74,6.84]
[1751611360091,10.49717836,152.76,152.74,6.84]
[1751611360288,3.95091454,152.75,152.72,1e-08]
[1751611360456,6.54626382,152.76,152.72,1e-08]
[1751611360457,3.95091454,152.73,152.72,1e-08]
[1751611360978,27.3725727,152.73,152.72,1e-08]
[1751611361377,11.56891454,152.73,152.72,1e-08]
[1751611361877,13.8039883,152.73,152.72,1e-08]
[1751611362094,20.35149042,152.73,152.72,1e-08]
[1751611367974,14.16550212,152.73,152.72,1e-08]
[1751611368188,20.35149042,152.73,152.72,1e-08]
[1751611375579,14.16550212,152.73,152.72,1e-08]
[1751611375779,20.35149042,152.73,152.72,1e-08]
[1751611377897,0.28432314,152.75,152.72,1e-08]
[1751611378073,6.1859883,152.73,152.72,1e-08]
[1751611380504,12.73349042,152.73,152.72,1e-08]
[1751611382984,6.1859883,152.75,152.72,1e-08]
[1751611383491,0.1,152.73,152.72,1e-08]
[1751611385607,6.64750212,152.73,152.72,1e-08]
[1751611389014,0.1,152.73,152.72,1e-08]
[1751611390396,0.1,152.73,152.72,6.18598831]
[1751611392706,0.1,152.73,152.72,1e-08]
[1751611392898,12.83349042,152.73,152.72,1e-08]
[1751611396914,6.64750212,152.73,152.72,1e-08]
[1751611397119,0.1,152.73,152.72,1e-08]
[1751611397292,0.1,152.73,152.72,6.18598831]
[1751611400702,0.1,152.73,152.72,1e-08]
[1751611401406,6.64750212,152.73,152.72,1e-08]
[1751611405695,12.83349042,152.73,152.72,1e-08]
[1751611405894,6.64750212,152.73,152.72,1e-08]
[1751611408516,6.14750212,152.73,152.72,1e-08]
[1751611409721,6.54719392,152.74,152.72,1e-08]
[1751611410303,6.54719392,152.74,152.72,6.18598831]
[1751611410501,6.54679871,152.75,152.72,6.18598831]
[1751611414009,6.54639681,152.76,152.73,6.1859883]
[1751611416627,0.1,152.75,152.73,6.1859883]
[1751611420925,0.1,152.75,152.72,1e-08]
[1751611420926,6.64667311,152.75,152.72,1e-08]
[1751611421146,6.64667311,152.75,152.73,6.1859883]
[1751611427420,6.64667311,152.75,152.72,6.18598831]
[1751611429435,6.64667311,152.75,152.72,1e-08]
[1751611429635,6.64667311,152.75,152.72,6.18598831]
[1751611431838,6.64667311,152.75,152.72,3.95556462]
[1751611436237,10.60223772,152.75,152.72,1e-08]
[1751611439124,3.95556461,152.74,152.72,1e-08]
[1751611440219,10.60223772,152.75,152.72,1e-08]
[1751611441437,6.64667311,152.75,152.72,1e-08]
[1751611441644,6.64667311,152.75,152.73,3.95556461]
[1751611443029,6.64667311,152.75,152.72,3.95556462]
[1751611445439,6.64667311,152.75,152.72,1e-08]
[1751611445646,2006.64667311,152.75,152.72,3.95556462]
[1751611447546,2000.1,152.75,152.73,3.95556461]
[1751611448322,2006.64669475,152.75,152.73,3.95556461]
[1751611450249,2000.1,152.75,152.73,3.95556461]
[1751611451189,2000.1,152.75,152.74,3.95556461]
[1751611451327,2000.1,152.75,152.74,22.60521347]
[1751611451739,2000.1,152.75,152.74,29.15228692]
[1751611451939,2000.1,152.75,152.74,31.60679586]
[1751611452947,2000.1,152.75,152.74,2.45450894]
[1751611453146,2000.1,152.75,152.74,6.41007355]
[1751611453946,2000.1,152.75,152.74,3.95556461]
[1751611455263,2000.1,152.75,152.74,29.15228692]
[1751611455849,2000.1,152.75,152.74,22.60521347]
[1751611456148,2000.1,152.75,152.74,3.95556461]
[1751611457265,2000.1,152.75,152.72,1e-08]